lending/lending_fUSD_20241120
["ID","MTS","AMOUNT","RATE_DAILY","PERIOD"]
[342776416,1732140654209,-500.0,0.00054794,120]
[342776417,1732140654219,-151.0,0.00054794,120]
[342776418,1732140654229,-500.0,0.00054794,120]
[342776419,1732140654238,-1169.39995785,0.00054794,30]
[342776420,1732140654248,-500.0,0.00054794,120]
[342776421,1732140654258,-500.0,0.00054794,120]
[342776422,1732140654267,-1402.45,0.00054794,60]
[342776423,1732140654276,-500.0,0.00054794,120]
[342776424,1732140654287,-500.0,0.00054794,120]
[342776425,1732140654296,-800.61,0.00054794,120]
[342776426,1732140654306,-500.0,0.00054794,120]
[342776427,1732140654315,-500.0,0.00054794,120]
[342776428,1732140654324,-932.27,0.00054794,120]
[342776429,1732140654333,-708.966244,0.00054794,120]
[342776430,1732140654343,-151.0,0.00054794,120]
[342776431,1732140654353,-1004.07,0.00054794,120]
[342776432,1732140654364,-500.0,0.00054794,120]
[342776433,1732140654375,-500.0,0.00054794,120]
[342776434,1732140654385,-2000.63,0.00054794,120]
[342776435,1732140654396,-1132.68,0.00054794,120]
[342776436,1732140654405,-500.0,0.00054794,120]
[342776437,1732140654415,-703.55,0.00054794,120]
[342776438,1732140654426,-2241.76,0.00054794,120]
[342776439,1732140654436,-708.966244,0.00054794,120]
[342776440,1732140654446,-500.0,0.00054794,120]
[342776441,1732140654456,-596.11,0.00054794,120]
[342776442,1732140654558,-500.0,0.00054794,120]
[342776443,1732140654568,-794.52,0.00054794,120]
[342776444,1732140654577,-500.0,0.00054794,120]
[342776445,1732140654586,-833.99,0.00054794,120]
[342776446,1732140654595,-2777.12,0.00054794,120]
[342776447,1732140654605,-1309.21,0.00054794,120]
[342776448,1732140654615,-1558.24,0.00054794,120]
[342776449,1732140654628,-500.0,0.00054794,120]
[342776450,1732140654637,-500.0,0.00054794,120]
[342776451,1732140654647,-500.0,0.00054794,120]
[342776452,1732140654657,-500.0,0.00054794,120]
[342776453,1732140654667,-500.0,0.00054794,120]
[342776454,1732140654677,-500.0,0.00054794,120]
[342776455,1732140654687,-500.0,0.00054794,120]
[342776456,1732140654696,-500.0,0.00054794,120]
[342776457,1732140654706,-509.30478834,0.00054794,120]
[342776458,1732140654716,-500.0,0.00054794,120]
[342776459,1732140654725,-500.0,0.00054794,120]
[342776460,1732140654735,-2539.87,0.00054794,120]
[342776461,1732140654745,-500.08,0.00054794,120]
[342776462,1732140654755,-500.0,0.00054794,120]
[342776463,1732140654764,-503.71496866,0.00054794,120]
[342776464,1732140654773,-500.0,0.00054794,120]
[342776465,1732140654783,-500.0,0.00054794,60]
[342776466,1732140654792,-500.0,0.00054794,120]
[342776467,1732140654802,-500.0,0.00054794,120]
[342776468,1732140654811,-831.36,0.00054794,120]
[342776469,1732140654820,-500.0,0.00054794,120]
[342776470,1732140654830,-500.0,0.00054794,120]
[342776471,1732140654840,-500.0,0.00054794,120]
[342776472,1732140654849,-1229.75,0.00054794,120]
[342776473,1732140654859,-500.0,0.00054794,120]
[342776474,1732140654870,-500.0,0.00054794,120]
[342776475,1732140654879,-1365.28,0.00054794,120]
[342776476,1732140654888,-1743.89,0.00054794,120]
[342776477,1732140654897,-500.0,0.00054794,120]
[342776478,1732140654907,-500.0,0.00054794,120]
[342776479,1732140654916,-500.0,0.00054794,120]
[342776480,1732140654925,-500.0,0.00054794,120]
[342776481,1732140654934,-500.0,0.00054794,120]
[342776482,1732140654944,-1290.22,0.00054794,120]
[342776483,1732140654954,-500.0,0.00054794,120]
[342776484,1732140654963,-507.82,0.00054794,120]
[342776485,1732140654973,-500.0,0.00054794,120]
[342776486,1732140654983,-151.0,0.00054794,120]
[342776487,1732140654992,-500.0,0.00054794,120]
[342776488,1732140655002,-3045.72,0.00054794,120]
[342776489,1732140655011,-500.0,0.00054794,120]
[342776490,1732140655021,-500.0,0.00054794,120]
[342776491,1732140655030,-500.0,0.00054794,120]
[342776492,1732140655039,-500.0,0.00054794,120]
[342776493,1732140655048,-500.0,0.00054794,120]
[342776494,1732140655058,-500.0,0.00054794,120]
[342776495,1732140655067,-500.0,0.00054794,120]
[342776496,1732140655076,-500.0,0.00054794,120]
[342776497,1732140655086,-323.433089,0.00054794,120]
[342776498,1732140655096,-500.0,0.00054794,120]
[342776499,1732140655105,-916.6,0.00054794,120]
[342776500,1732140655115,-500.0,0.00054794,120]
[342776501,1732140655128,-500.0,0.00054794,120]
[342776502,1732140655137,-610.75,0.00054794,120]
[342776503,1732140655147,-500.0,0.00054794,120]
[342776504,1732140655156,-246.476263,0.00054794,120]
[342776505,1732140655166,-502.86,0.00054794,120]
[342776506,1732140655175,-1278.95,0.00054794,120]
[342776507,1732140655186,-504.52,0.00054794,120]
[342776508,1732140655197,-323.433089,0.00054794,120]
[342776509,1732140655207,-500.0,0.00054794,120]
[342776510,1732140655216,-500.0,0.00054794,120]
[342776511,1732140655226,-500.0,0.00054794,120]
[342776512,1732140655235,-500.0,0.00054794,120]
[342776513,1732140655244,-500.0,0.00054794,120]
[342776514,1732140655253,-803.66,0.00054794,120]
[342776515,1732140655263,-702.18,0.00054794,120]
[342776516,1732140655272,-803.66,0.00054794,120]
[342776517,1732140655282,-803.66,0.00054794,120]
[342776518,1732140655291,-803.66,0.00054794,120]
[342776519,1732140655301,-803.66,0.00054794,120]
[342776520,1732140655310,-803.66,0.00054794,120]
[342776521,1732140655319,-803.66,0.00054794,120]
[342776522,1732140655329,-151.0,0.00054794,120]
[342776523,1732140655350,-500.0,0.00054794,120]
[342776524,1732140655359,-803.66,0.00054794,120]
[342776525,1732140655370,-3583.6,0.00054794,120]
[342776526,1732140655379,-803.66,0.00054794,120]
[342776527,1732140655389,-500.0,0.00054794,120]
[342776528,1732140655399,-803.66,0.00054794,120]
[342776529,1732140655408,-803.66,0.00054794,120]
[342776530,1732140655419,-803.66,0.00054794,120]
[342776531,1732140655428,-803.66,0.00054794,120]
[342776532,1732140655437,-803.66,0.00054794,120]
[342776533,1732140655447,-1685.95,0.00054794,120]
[342776534,1732140655458,-603.33915359,0.00054794,120]
[342776535,1732140655468,-500.0,0.00054794,120]
[342776536,1732140655477,-803.66,0.00054794,120]
[342776537,1732140655487,-500.0,0.00054794,120]
[342776538,1732140655497,-803.66,0.00054794,120]
[342776539,1732140655507,-500.0,0.00054794,120]
[342776540,1732140655517,-803.66,0.00054794,120]
[342776541,1732140655527,-5689.68,0.00054794,120]
[342776542,1732140655537,-803.66,0.00054794,120]
[342776543,1732140655550,-500.0,0.00054794,120]
[342776544,1732140655560,-803.66,0.00054794,120]
[342776545,1732140655569,-803.66,0.00054794,120]
[342776546,1732140655579,-1343.23,0.00054794,120]
[342776547,1732140655588,-151.0,0.00054794,120]
[342776548,1732140655598,-803.66,0.00054794,120]
[342776549,1732140655607,-803.66,0.00054794,120]
[342776550,1732140655619,-500.0,0.00054794,120]
[342776551,1732140655629,-500.0,0.00054794,120]
[342776552,1732140655639,-500.0,0.00054794,120]
[342776553,1732140655649,-803.66,0.00054794,120]
[342776554,1732140655659,-803.73736019,0.00054794,120]
[342776555,1732140655668,-553.27,0.00054794,120]
[342776556,1732140655678,-500.0,0.00054794,120]
[342776557,1732140655688,-500.0,0.00054794,120]
[342776558,1732140655698,-500.0,0.00054794,120]
[342776559,1732140655708,-500.0,0.00054794,120]
[342776560,1732140655718,-500.0,0.00054794,120]
[342776561,1732140655728,-500.0,0.00054794,120]
[342776562,1732140655737,-528.47989897,0.00054794,120]
[342776563,1732140655747,-500.0,0.00054794,120]
[342776564,1732140655757,-500.0,0.00054794,120]
[342776565,1732140655767,-1250.26,0.00054794,120]
[342776566,1732140655776,-581.42762827,0.00054794,5]
[342776567,1732140655786,-500.0,0.00054794,120]
[342776568,1732140655796,-982.33,0.00054794,120]
[342776569,1732140655805,-500.0,0.00054794,120]
[342776570,1732140655815,-667.62,0.00054794,120]
[342776571,1732140655824,-500.0,0.00054794,120]
[342776572,1732140655833,-500.0,0.00054794,120]
[342776573,1732140655843,-500.0,0.00054794,120]
[342776574,1732140655854,-500.0,0.00054794,120]
[342776575,1732140655864,-609.95,0.00054794,120]
[342776576,1732140655876,-500.0,0.00054794,120]
[342776577,1732140655886,-500.0,0.00054794,120]
[342776578,1732140655895,-500.0,0.00054794,120]
[342776579,1732140655906,-500.0,0.00054794,120]
[342776580,1732140655915,-500.0,0.00054794,120]
[342776581,1732140655925,-500.0,0.00054794,120]
[342776582,1732140655934,-500.0,0.00054794,120]
[342776583,1732140655944,-370.85893634,0.00054794,120]
[342776584,1732140655954,-808.05,0.00054794,120]
[342776585,1732140655963,-500.0,0.00054794,120]
[342776586,1732140655973,-522.08,0.00054794,120]
[342776587,1732140655982,-671.78,0.00054794,120]
[342776588,1732140655992,-1111.01,0.00054794,120]
[342776589,1732140656002,-500.0,0.00054794,120]
[342776590,1732140656012,-500.0,0.00054794,120]
[342776591,1732140656022,-500.0,0.00054794,120]
[342776592,1732140656033,-1704.12,0.00054794,120]
[342776593,1732140656042,-2102.13,0.00054794,120]
[342776594,1732140656052,-500.0,0.00054794,120]
[342776595,1732140656062,-500.0,0.00054794,120]
[342776596,1732140656072,-500.0,0.00054794,120]
[342776597,1732140656082,-500.0,0.00054794,120]
[342776598,1732140656091,-500.0,0.00054794,120]
[342776599,1732140656101,-675.74,0.00054794,120]
[342776600,1732140656111,-500.0,0.00054794,120]
[342776601,1732140656125,-1034.91,0.00054794,120]
[342776602,1732140656136,-628.14013,0.00054794,120]
[342776603,1732140656146,-907.83,0.00054794,120]
[342776604,1732140656156,-500.0,0.00054794,120]
[342776605,1732140656167,-500.0,0.00054794,120]
[342776606,1732140656177,-151.0,0.00054794,120]
[342776607,1732140656188,-500.0,0.00054794,120]
[342776608,1732140656199,-500.0,0.00054794,120]
[342776609,1732140656210,-151.0,0.00054794,120]
[342776610,1732140656219,-500.0,0.00054794,120]
[342776611,1732140656229,-628.14013,0.00054794,120]
[342776612,1732140656239,-2296.76,0.00054794,20]
[342776613,1732140656248,-5007.0,0.00054794,120]
[342776614,1732140656257,-500.0,0.00054794,120]
[342776615,1732140656267,-500.0,0.00054794,120]
[342776616,1732140656276,-151.0,0.00054794,120]
[342776617,1732140656286,-500.0,0.00054794,120]
[342776618,1732140656296,-395.00848087,0.00054794,120]
[342776619,1732140656305,-178.30334967,0.00054794,120]
[342776620,1732140656315,-500.0,0.00054794,120]
[342776621,1732140656325,-500.0,0.00054794,120]
[342776622,1732140656334,-500.0,0.00054794,120]
[342776623,1732140656343,-500.0,0.00054794,120]
[342776624,1732140656353,-500.0,0.00054794,120]
[342776625,1732140656362,-500.0,0.00054794,120]
[342776626,1732140656373,-798.21,0.00054794,120]
[342776627,1732140656383,-500.0,0.00054794,120]
[342776628,1732140656393,-500.0,0.00054794,120]
[342776629,1732140656402,-647.62,0.00054794,120]
[342776630,1732140656414,-500.0,0.00054794,120]
[342776631,1732140656424,-500.0,0.00054794,120]
[342776632,1732140656433,-2489.82,0.00054794,120]
[342776633,1732140656443,-500.0,0.00054794,120]
[342776634,1732140656452,-500.0,0.00054794,120]
[342776635,1732140656462,-2045.61,0.00054794,120]
[342776636,1732140656472,-500.0,0.00054794,120]
[342776637,1732140656482,-500.0,0.00054794,120]
[342776638,1732140656491,-500.0,0.00054794,120]
[342776639,1732140656501,-500.0,0.00054794,120]
[342776640,1732140656511,-500.0,0.00054794,120]
[342776641,1732140656520,-500.0,0.00054794,120]
[342776642,1732140656530,-151.0,0.00054794,120]
[342776643,1732140656539,-500.0,0.00054794,120]
[342776644,1732140656549,-500.0,0.00054794,120]
[342776645,1732140656558,-500.0,0.00054794,120]
[342776646,1732140656567,-500.0,0.00054794,120]
[342776647,1732140656577,-500.0,0.00054794,120]
[342776648,1732140656587,-721.64,0.00054794,120]
[342776649,1732140656596,-972.27,0.00054794,120]
[342776650,1732140656605,-1208.94,0.00054794,120]
[342776651,1732140656615,-151.0,0.00054794,120]
[342776652,1732140656626,-1591.78,0.00054794,120]
[342776653,1732140656636,-589.3869057,0.00054794,120]
[342776654,1732140656646,-1887.72,0.00054794,120]
[342776655,1732140656655,-850.0,0.00054794,120]
[342776656,1732140656665,-500.0,0.00054794,120]
[342776657,1732140656674,-500.0,0.00054794,30]
[342776658,1732140656684,-852.01,0.00054794,120]
[342776659,1732140656693,-500.0,0.00054794,120]
[342776660,1732140656703,-500.0,0.00054794,120]
[342776661,1732140656713,-872.84,0.00054794,120]
[342776662,1732140656723,-151.053105,0.00054794,120]
[342776663,1732140656733,-151.0,0.00054794,120]
[342776664,1732140656742,-500.0,0.00054794,120]
[342776665,1732140656751,-865.82,0.00054794,120]
[342776666,1732140656761,-500.0,0.00054794,120]
[342776667,1732140656771,-445.84016616,0.00054794,120]
[342776668,1732140656780,-500.0,0.00054794,120]
[342776669,1732140656789,-846.36,0.00054794,120]
[342776670,1732140656798,-151.0,0.00054794,120]
[342776671,1732140656807,-500.0,0.00054794,120]
[342776672,1732140656816,-500.0,0.00054794,120]
[342776673,1732140656825,-1191.88,0.00054794,120]
[342776674,1732140656834,-500.0,0.00054794,120]
[342776675,1732140656843,-500.0,0.00054794,120]
[342776676,1732140656853,-500.0,0.00054794,120]
[342776677,1732140656863,-500.0,0.00054794,120]
[342776678,1732140656873,-500.0,0.00054794,120]
[342776679,1732140656882,-1792.7,0.00054794,120]
[342776680,1732140656891,-5749.44,0.00054794,120]
[342776681,1732140656901,-500.0,0.00054794,120]
[342776682,1732140656910,-500.0,0.00054794,120]
[342776683,1732140656919,-151.0,0.00054794,120]
[342776684,1732140656929,-500.0,0.00054794,120]
[342776685,1732140656938,-500.0,0.00054794,120]
[342776686,1732140656947,-500.0,0.00054794,120]
[342776687,1732140656957,-500.0,0.00054794,120]
[342776688,1732140656966,-500.0,0.00054794,120]
[342776689,1732140656975,-571.98,0.00054794,120]
[342776690,1732140656984,-706.66,0.00054794,120]
[342776691,1732140656993,-500.0,0.00054794,120]
[342776692,1732140657003,-151.0,0.00054794,120]
[342776693,1732140657012,-500.0,0.00054794,120]
[342776694,1732140657021,-669.11,0.00054794,120]
[342776695,1732140657031,-710.75,0.00054794,120]
[342776696,1732140657040,-500.0,0.00054794,30]
[342776697,1732140657050,-500.0,0.00054794,120]
[342776698,1732140657059,-688.41,0.00054794,120]
[342776699,1732140657069,-600.76,0.00054794,120]
[342776700,1732140657078,-2203.93,0.00054794,120]
[342776701,1732140657088,-1092.67,0.00054794,120]
[342776702,1732140657098,-723.74,0.00054794,120]
[342776703,1732140657107,-500.0,0.00054794,120]
[342776704,1732140657120,-962.75,0.00054794,120]
[342776705,1732140657129,-500.0,0.00054794,120]
[342776706,1732140657138,-500.0,0.00054794,120]
[342776707,1732140657148,-500.0,0.00054794,120]
[342776708,1732140657157,-151.0,0.00054794,120]
[342776709,1732140657168,-500.0,0.00054794,120]
[342776710,1732140657177,-988.55,0.00054794,120]
[342776711,1732140657187,-500.0,0.00054794,120]
[342776712,1732140657198,-151.0,0.00054794,120]
[342776713,1732140657207,-2304.78,0.00054794,120]
[342776714,1732140657216,-500.0,0.00054794,120]
[342776715,1732140657226,-843.9,0.00054794,120]
[342776716,1732140657235,-500.0,0.00054794,120]
[342776717,1732140657245,-500.0,0.00054794,120]
[342776718,1732140657254,-690.54,0.00054794,120]
[342776719,1732140657264,-500.0,0.00054794,120]
[342776720,1732140657273,-500.0,0.00054794,120]
[342776721,1732140657283,-1647.87,0.00054794,120]
[342776722,1732140657292,-523.34080014,0.00054794,120]
[342776723,1732140657301,-850.55,0.00054794,120]
[342776724,1732140657312,-809.67,0.00054794,120]
[342776725,1732140657321,-500.0,0.00054794,120]
[342776726,1732140657330,-683.97,0.00054794,120]
[342776727,1732140657340,-500.0,0.00054794,120]
[342776728,1732140657349,-834.1,0.00054794,120]
[342776729,1732140657358,-914.77,0.00054794,120]
[342776730,1732140657369,-151.0,0.00054794,120]
[342776731,1732140657378,-1141.14,0.00054794,120]
[342776732,1732140657387,-500.0,0.00054794,120]
[342776733,1732140657396,-624.59,0.00054794,120]
[342776734,1732140657406,-500.0,0.00054794,120]
[342776735,1732140657415,-500.0,0.00054794,120]
[342776736,1732140657425,-500.0,0.00054794,120]
[342776737,1732140657434,-1109.8,0.00054794,120]
[342776738,1732140657444,-500.0,0.00054794,120]
[342776739,1732140657454,-500.0,0.00054794,120]
[342776740,1732140657464,-500.0,0.00054794,120]
[342776741,1732140657473,-1752.52,0.00054794,120]
[342776742,1732140657483,-1096.46,0.00054794,120]
[342776743,1732140657492,-500.0,0.00054794,120]
[342776744,1732140657501,-950.07,0.00054794,120]
[342776745,1732140657510,-500.0,0.00054794,120]
[342776746,1732140657519,-500.0,0.00054794,120]
[342776747,1732140657529,-151.0,0.00054794,120]
[342776748,1732140657538,-1422.3,0.00054794,120]
[342776749,1732140657548,-2142.92,0.00054794,120]
[342776750,1732140657558,-829.0,0.00054794,120]
[342776751,1732140657567,-500.0,0.00054794,120]
[342776752,1732140657577,-575.3,0.00054794,120]
[342776753,1732140657588,-500.0,0.00054794,120]
[342776754,1732140657597,-500.0,0.00054794,120]
[342776755,1732140657606,-737.82,0.00054794,120]
[342776756,1732140657617,-500.0,0.00054794,120]
[342776757,1732140657628,-500.0,0.00054794,120]
[342776758,1732140657638,-666.21,0.00054794,120]
[342776759,1732140657647,-1778.99,0.00054794,120]
[342776760,1732140657657,-151.0,0.00054794,120]
[342776761,1732140657667,-1715.56,0.00054794,120]
[342776762,1732140657676,-500.0,0.00054794,120]
[342776763,1732140657687,-500.0,0.00054794,120]
[342776764,1732140657698,-1062.65,0.00054794,120]
[342776765,1732140657709,-500.0,0.00054794,120]
[342776766,1732140657718,-185.699886,0.00054794,120]
[342776767,1732140657727,-500.0,0.00054794,120]
[342776768,1732140657737,-500.0,0.00054794,120]
[342776769,1732140657746,-2346.15,0.00054794,120]
[342776770,1732140657756,-151.0,0.00054794,120]
[342776771,1732140657766,-151.0,0.00054794,120]
[342776772,1732140657776,-500.0,0.00054794,120]
[342776773,1732140657786,-949.47,0.00054794,120]
[342776774,1732140657795,-500.0,0.00054794,120]
[342776775,1732140657806,-500.0,0.00054794,120]
[342776776,1732140657815,-511.24937332,0.00054794,120]
[342776777,1732140657825,-888.32,0.00054794,120]
[342776778,1732140657834,-1351.22,0.00054794,120]
[342776779,1732140657843,-500.0,0.00054794,120]
[342776780,1732140657854,-500.0,0.00054794,120]
[342776781,1732140657863,-880.81,0.00054794,120]
[342776782,1732140657875,-500.0,0.00054794,120]
[342776783,1732140657884,-500.0,0.00054794,120]
[342776784,1732140657894,-642.33,0.00054794,120]
[342776785,1732140657903,-500.0,0.00054794,120]
[342776786,1732140657913,-597.52,0.00054794,120]
[342776787,1732140657921,-151.0,0.00054794,120]
[342776788,1732140657930,-613.9,0.00054794,120]
[342776789,1732140657940,-613.9,0.00054794,120]
[342776790,1732140657950,-6141.54,0.00054794,120]
[342776791,1732140657959,-613.9,0.00054794,120]
[342776792,1732140657969,-500.0,0.00054794,120]
[342776793,1732140657978,-151.0,0.00054794,120]
[342776794,1732140657988,-613.9,0.00054794,120]
[342776795,1732140657997,-613.9,0.00054794,120]
[342776796,1732140658007,-613.9,0.00054794,120]
[342776797,1732140658017,-613.9,0.00054794,120]
[342776798,1732140658026,-500.0,0.00054794,120]
[342776799,1732140658037,-613.9,0.00054794,120]
[342776800,1732140658047,-500.0,0.00054794,120]
[342776801,1732140658057,-613.9,0.00054794,120]
[342776802,1732140658066,-500.0,0.00054794,120]
[342776803,1732140658077,-613.9,0.00054794,120]
[342776804,1732140658087,-500.0,0.00054794,120]
[342776805,1732140658096,-613.9,0.00054794,120]
[342776806,1732140658106,-1511.19,0.00054794,120]
[342776807,1732140658117,-613.9,0.00054794,120]
[342776808,1732140658129,-613.9,0.00054794,120]
[342776809,1732140658138,-613.9,0.00054794,120]
[342776810,1732140658148,-613.9,0.00054794,120]
[342776811,1732140658157,-613.9,0.00054794,120]
[342776812,1732140658168,-613.9,0.00054794,120]
[342776813,1732140658177,-613.9,0.00054794,120]
[342776814,1732140658187,-151.0,0.00054794,120]
[342776815,1732140658198,-613.9,0.00054794,120]
[342776816,1732140658207,-613.9,0.00054794,120]
[342776817,1732140658217,-1086.04,0.00054794,120]
[342776818,1732140658226,-500.0,0.00054794,120]
[342776819,1732140658236,-613.9,0.00054794,120]
[342776820,1732140658246,-613.9,0.00054794,120]
[342776821,1732140658256,-668.34,0.00054794,120]
[342776822,1732140658266,-613.9,0.00054794,120]
[342776823,1732140658275,-560.18868471,0.00054794,120]
[342776824,1732140658284,-613.90205014,0.00054794,120]
[342776825,1732140658295,-1351.32,0.00054794,120]
[342776826,1732140658306,-500.0,0.00054794,120]
[342776827,1732140658315,-1492.04,0.00054794,120]
[342776828,1732140658325,-926.38,0.00054794,120]
[342776829,1732140658335,-500.0,0.00054794,120]
[342776830,1732140658344,-695.0,0.00054794,120]
[342776831,1732140658354,-5287.99,0.00054794,120]
[342776832,1732140658363,-500.0,0.00054794,120]
[342776833,1732140658375,-500.0,0.00054794,120]
[342776834,1732140658385,-500.0,0.00054794,120]
[342776835,1732140658395,-500.0,0.00054794,120]
[342776836,1732140658405,-1482.2,0.00054794,120]
[342776837,1732140658415,-500.0,0.00054794,120]
[342776838,1732140658425,-845.23,0.00054794,120]
[342776839,1732140658435,-500.0,0.00054794,120]
[342776840,1732140658446,-500.0,0.00054794,120]
[342776841,1732140658456,-500.0,0.00054794,120]
[342776842,1732140658466,-500.0,0.00054794,120]
[342776843,1732140658476,-151.0,0.00054794,120]
[342776844,1732140658486,-500.0,0.00054794,120]
[342776845,1732140658497,-500.0,0.00054794,120]
[342776846,1732140658509,-1260.12,0.00054794,120]
[342776847,1732140658519,-500.0,0.00054794,120]
[342776848,1732140658529,-500.0,0.00054794,120]
[342776849,1732140658539,-500.0,0.00054794,120]
[342776850,1732140658548,-1283.29,0.00054794,120]
[342776851,1732140658562,-500.0,0.00054794,120]
[342776852,1732140658572,-500.0,0.00054794,120]
[342776853,1732140658583,-1393.35,0.00054794,120]
[342776854,1732140658593,-500.0,0.00054794,120]
[342776855,1732140658603,-500.0,0.00054794,120]
[342776856,1732140658613,-500.0,0.00054794,120]
[342776857,1732140658625,-500.0,0.00054794,120]
[342776858,1732140658635,-500.0,0.00054794,120]
[342776859,1732140658645,-500.0,0.00054794,120]
[342776860,1732140658655,-151.0,0.00054794,120]
[342776861,1732140658665,-2642.2,0.00054794,120]
[342776862,1732140658675,-1536.4,0.00054794,120]
[342776863,1732140658685,-500.0,0.00054794,120]
[342776864,1732140658695,-3168.55,0.00054794,120]
[342776865,1732140658705,-500.0,0.00054794,120]
[342776866,1732140658715,-500.0,0.00054794,120]
[342776867,1732140658725,-827.35,0.00054794,120]
[342776868,1732140658735,-500.0,0.00054794,120]
[342776869,1732140658745,-1702.89,0.00054794,120]
[342776870,1732140658755,-500.0,0.00054794,120]
[342776871,1732140658765,-151.0,0.00054794,120]
[342776872,1732140658775,-500.0,0.00054794,120]
[342776873,1732140658785,-500.0,0.00054794,120]
[342776874,1732140658796,-151.0,0.00054794,120]
[342776875,1732140658806,-641.78,0.00054794,120]
[342776876,1732140658817,-500.0,0.00054794,120]
[342776877,1732140658827,-500.0,0.00054794,120]
[342776878,1732140658837,-1344.44,0.00054794,120]
[342776879,1732140658847,-1090.73,0.00054794,120]
[342776880,1732140658857,-500.0,0.00054794,120]
[342776881,1732140658867,-52850.67,0.00054794,120]
[342776882,1732140658879,-500.0,0.00054794,120]
[342776883,1732140658889,-170.00486969,0.00054794,120]
[342776884,1732140658899,-500.0,0.00054794,120]
[342776885,1732140658909,-1753.45,0.00054794,120]
[342776886,1732140658921,-1006.78,0.00054794,120]
[342776887,1732140658931,-500.0,0.00054794,120]
[342776888,1732140658941,-1064.88,0.00054794,120]
[342776889,1732140658951,-500.0,0.00054794,120]
[342776890,1732140658961,-500.0,0.00054794,120]
[342776891,1732140658971,-622.97,0.00054794,120]
[342776892,1732140658981,-500.0,0.00054794,120]
[342776893,1732140658990,-3042.17,0.00054794,120]
[342776894,1732140659000,-500.0,0.00054794,120]
[342776895,1732140659010,-500.78805567,0.00054794,120]
[342776896,1732140659019,-1736.39,0.00054794,120]
[342776897,1732140659029,-2339.16,0.00054794,120]
[342776898,1732140659039,-582.77222203,0.00054794,120]
[342776899,1732140659048,-500.0,0.00054794,120]
[342776900,1732140659058,-500.0,0.00054794,120]
[342776901,1732140659068,-585.35,0.00054794,120]
[342776902,1732140659078,-700.57,0.00054794,120]
[342776903,1732140659087,-500.0,0.00054794,120]
[342776904,1732140659097,-523.5,0.00054794,120]
[342776905,1732140659107,-1522.74,0.00054794,120]
[342776906,1732140659117,-500.0,0.00054794,120]
[342776907,1732140659129,-2627.11,0.00054794,120]
[342776908,1732140659139,-1766.0,0.00054794,120]
[342776909,1732140659148,-500.0,0.00054794,120]
[342776910,1732140659158,-693.99,0.00054794,120]
[342776911,1732140659168,-5335.95,0.00054794,120]
[342776912,1732140659178,-500.0,0.00054794,120]
[342776913,1732140659188,-973.18,0.00054794,120]
[342776914,1732140659198,-500.0,0.00054794,120]
[342776915,1732140659208,-500.0,0.00054794,120]